fUST/lending_fUST_20241226
["ID","MTS","AMOUNT","RATE_DAILY","PERIOD"]
[346698598,1735203044220,-500.0,0.00019324,2]
[346698599,1735203044230,-500.0,0.00019324,2]
[346698600,1735203044239,-500.0,0.00019324,2]
[346698601,1735203044250,-500.0,0.00019324,2]
[346698602,1735203044259,-603.34,0.00019324,2]
[346698603,1735203044270,-222.00794565,0.00019324,2]
[346698604,1735203044280,-609.16533686,0.00019324,2]
[346698605,1735203044289,-500.0,0.00019324,2]
[346698606,1735203044298,-288.00201852,0.00019324,2]
[346698607,1735203044307,-352.23202336,0.00019324,2]
[346698608,1735203044316,-500.0,0.00019324,2]
[346698609,1735203044325,-500.0,0.00019324,2]
[346698610,1735203044335,-500.0,0.00019324,2]
[346698611,1735203044344,-500.0,0.00019324,2]
[346698612,1735203044357,-500.0,0.00019324,2]
[346698613,1735203044367,-500.0,0.00019324,2]
[346698614,1735203044377,-500.0,0.00019324,2]
[346698615,1735203044386,-500.0,0.00019324,2]
[346698616,1735203044395,-500.0,0.00019324,2]
[346698617,1735203044404,-500.0,0.00019324,2]
[346698618,1735203044414,-500.0,0.00019324,2]
[346698619,1735203044423,-500.0,0.00019324,2]
[346698620,1735203044432,-500.0,0.00019324,2]
[346698621,1735203044442,-204.06087272,0.00019324,2]
[346698622,1735203044451,-166.33358366,0.00019324,2]
[346698623,1735203044460,-500.0,0.00019324,2]
[346698624,1735203044469,-500.26962273,0.00019324,2]
[346698625,1735203044479,-500.0,0.00019324,2]
[346698626,1735203044488,-500.0,0.00019324,2]
[346698627,1735203044497,-500.0,0.00019324,2]
[346698628,1735203044506,-500.0,0.00019324,2]
[346698629,1735203044515,-500.0,0.00019324,2]
[346698630,1735203044525,-500.0,0.00019324,2]
[346698631,1735203044534,-500.0,0.00019324,2]
[346698632,1735203044544,-500.0,0.00019324,2]
[346698633,1735203044553,-500.0,0.00019324,2]
[346698634,1735203044563,-500.0,0.00019324,2]
[346698635,1735203044572,-500.0,0.00019324,2]
[346698636,1735203044582,-500.0,0.00019324,2]
[346698637,1735203044591,-500.0,0.00019324,2]
[346698638,1735203044603,-500.0,0.00019324,2]
[346698639,1735203044612,-500.0,0.00019324,2]
[346698640,1735203044621,-500.0,0.00019324,2]
[346698641,1735203044630,-500.0,0.00019324,2]
[346698642,1735203044639,-500.0,0.00019324,2]
[346698643,1735203044649,-500.0,0.00019324,2]
[346698644,1735203044658,-500.0,0.00019324,2]
[346698645,1735203044667,-500.0,0.00019324,2]
[346698646,1735203044677,-500.0,0.00019324,2]
[346698647,1735203044686,-500.0,0.00019324,2]
[346698648,1735203044695,-500.0,0.00019324,2]
[346698649,1735203044704,-501.09943716,0.00019324,2]
[346698650,1735203044713,-500.0,0.00019324,2]
[346698651,1735203044722,-500.0,0.00019324,2]
[346698652,1735203044731,-500.0,0.00019324,2]
[346698653,1735203044741,-500.0,0.00019324,2]
[346698654,1735203044750,-500.0,0.00019324,2]
[346698655,1735203044759,-166.67455544,0.00019324,2]
[346698656,1735203044768,-504.12752646,0.00019324,2]
[346698657,1735203044777,-500.0,0.00019324,2]
[346698658,1735203044786,-909.88,0.00019324,2]
[346698659,1735203044795,-502.23157829,0.00019324,2]
[346698660,1735203044804,-500.0,0.00019324,2]
[346698661,1735203044813,-500.0,0.00019324,2]
[346698662,1735203044823,-501.870589,0.00019324,2]
[346698663,1735203044832,-500.0,0.00019324,2]
[346698664,1735203044841,-502.24284396,0.00019324,2]
[346698665,1735203044853,-500.0,0.00019324,2]
[346698666,1735203044862,-500.0,0.00019324,2]
[346698667,1735203044871,-500.0,0.00019324,2]
[346698668,1735203044881,-500.0,0.00019324,2]
[346698669,1735203044890,-500.0,0.00019324,2]
[346698670,1735203044899,-500.0,0.00019324,2]
[346698671,1735203044908,-500.0,0.00019324,2]
[346698672,1735203044918,-500.0,0.00019324,2]
[346698673,1735203044927,-504.0302554,0.00019324,2]
[346698674,1735203044936,-500.0,0.00019324,2]
[346698675,1735203044946,-500.99268027,0.00019324,2]
[346698676,1735203044954,-500.0,0.00019324,2]
[346698677,1735203044963,-500.0,0.00019324,2]
[346698678,1735203044972,-500.0,0.00019324,2]
[346698679,1735203045059,-540.58280519,0.00019324,2]
[346698680,1735203045069,-500.0,0.00019324,2]
[346698681,1735203045078,-500.0,0.00019324,2]
[346698682,1735203045087,-500.0,0.00019324,2]
[346698683,1735203045096,-500.0,0.00019324,2]
[346698684,1735203045107,-500.0,0.00019324,2]
[346698685,1735203045117,-502.31671248,0.00019324,2]
[346698686,1735203045126,-500.0,0.00019324,2]
[346698687,1735203045136,-500.0,0.00019324,2]
[346698688,1735203045145,-503.21424572,0.00019324,2]
[346698689,1735203045155,-500.0,0.00019324,2]
[346698690,1735203045164,-500.0,0.00019324,2]
[346698691,1735203045173,-500.0,0.00019324,2]
[346698692,1735203045182,-500.0,0.00019324,2]
[346698693,1735203045193,-500.0,0.00019324,2]
[346698694,1735203045202,-500.0,0.00019324,2]
[346698695,1735203045212,-500.0,0.00019324,2]
[346698696,1735203045221,-500.0,0.00019324,2]
[346698697,1735203045230,-501.47771127,0.00019324,2]
[346698698,1735203045241,-500.07418367,0.00019324,2]
[346698699,1735203045250,-500.0,0.00019324,2]
[346698700,1735203045259,-500.0,0.00019324,2]
[346698701,1735203045271,-501.62156979,0.00019324,2]
[346698702,1735203045280,-500.0,0.00019324,2]
[346698703,1735203045289,-500.0,0.00019324,2]
[346698704,1735203045298,-500.0,0.00019324,2]
[346698705,1735203045307,-500.0,0.00019324,2]
[346698706,1735203045317,-500.0,0.00019324,2]
[346698707,1735203045326,-500.0,0.00019324,2]
[346698708,1735203045335,-500.0,0.00019324,2]
[346698709,1735203045345,-500.0,0.00019324,2]
[346698710,1735203045355,-500.0,0.00019324,2]
[346698711,1735203045364,-500.0,0.00019324,2]
[346698712,1735203045373,-500.99275447,0.00019324,2]
[346698713,1735203045383,-500.0,0.00019324,2]
[346698714,1735203045392,-500.0,0.00019324,2]
[346698715,1735203045401,-500.0,0.00019324,2]
[346698716,1735203045410,-500.0,0.00019324,2]
[346698717,1735203045420,-500.0,0.00019324,2]
[346698718,1735203045429,-500.0,0.00019324,2]
[346698719,1735203045439,-500.0,0.00019324,2]
[346698720,1735203045448,-500.0,0.00019324,2]
[346698721,1735203045457,-500.0,0.00019324,2]
[346698722,1735203045466,-500.0,0.00019324,2]
[346698723,1735203045475,-500.0,0.00019324,2]
[346698724,1735203045484,-500.0,0.00019324,2]
[346698725,1735203045493,-500.0,0.00019324,2]
[346698726,1735203045502,-500.08514373,0.00019324,2]
[346698727,1735203045511,-500.0,0.00019324,2]
[346698728,1735203045520,-311.32939574,0.00019324,2]
[346698729,1735203045530,-500.0,0.00019324,2]
[346698731,1735203045539,-500.0,0.00019324,2]
[346698733,1735203045548,-500.0,0.00019324,2]
[346698735,1735203045557,-500.0,0.00019324,2]
[346698736,1735203045566,-500.0,0.00019324,2]
[346698737,1735203045575,-235.73285186,0.00019324,2]
[346698738,1735203045584,-500.0,0.00019324,2]
[346698739,1735203045594,-500.0,0.00019324,2]
[346698741,1735203045603,-500.0,0.00019324,2]
[346698743,1735203045612,-500.0,0.00019324,2]
[346698745,1735203045621,-500.0,0.00019324,2]
[346698746,1735203045631,-500.0,0.00019324,2]
[346698747,1735203045640,-500.0,0.00019324,2]
[346698748,1735203045649,-523.40537884,0.00019324,2]
[346698750,1735203045659,-500.0,0.00019324,2]
[346698752,1735203045668,-500.0,0.00019324,2]
[346698753,1735203045678,-500.0,0.00019324,2]
[346698754,1735203045687,-500.0,0.00019324,2]
[346698755,1735203045697,-500.0,0.00019324,2]
[346698756,1735203045707,-486.58093515,0.00019324,2]
[346698757,1735203045716,-505.35906441,0.00019324,2]
[346698758,1735203045725,-501.26864288,0.00019324,2]
[346698759,1735203045735,-500.0,0.00019324,2]
[346698760,1735203045744,-500.0,0.00019324,2]
[346698761,1735203045752,-502.12,0.00019324,2]
[346698762,1735203045762,-500.0,0.00019324,2]
[346698763,1735203045771,-500.0,0.00019324,2]
[346698765,1735203045781,-511.91898471,0.00019324,2]
[346698766,1735203045790,-500.0,0.00019324,2]
[346698767,1735203045799,-500.0,0.00019324,2]
[346698768,1735203045809,-51.22999843,0.00019324,2]
[346698770,1735203045892,-448.77000157,0.00019324,2]
[346698771,1735203045902,-500.0,0.00019324,2]
[346698772,1735203045912,-19.26866594,0.00019324,2]
[346698773,1735203045923,-480.73133406,0.00019324,2]
[346698774,1735203045933,-500.0,0.00019324,2]
[346698775,1735203045942,-503.65026606,0.00019324,2]
[346698776,1735203045952,-500.0,0.00019324,2]
[346698777,1735203045961,-500.0,0.00019324,2]
[346698778,1735203045971,-503.53902868,0.00019324,2]
[346698779,1735203045980,-500.0,0.00019324,2]
[346698781,1735203045990,-500.0,0.00019324,2]
[346698782,1735203046000,-500.0,0.00019324,2]
[346698784,1735203046009,-500.0,0.00019324,2]
[346698785,1735203046019,-500.0,0.00019324,2]
[346698786,1735203046028,-501.78425014,0.00019324,2]
[346698787,1735203046037,-500.0,0.00019324,2]
[346698788,1735203046047,-500.0,0.00019324,2]
[346698789,1735203046056,-500.0,0.00019324,2]
[346698790,1735203046065,-500.0,0.00019324,2]
[346698791,1735203046075,-500.0,0.00019324,2]
[346698792,1735203046084,-500.0,0.00019324,2]
[346698793,1735203046093,-501.82812975,0.00019324,2]
[346698794,1735203046104,-500.0,0.00019324,2]
[346698796,1735203046113,-500.0,0.00019324,2]
[346698798,1735203046123,-500.0,0.00019324,2]
[346698800,1735203046132,-500.0,0.00019324,2]
[346698802,1735203046141,-500.0,0.00019324,2]
[346698804,1735203046150,-500.0,0.00019324,2]
[346698805,1735203046159,-502.43854092,0.00019324,2]
[346698807,1735203046169,-500.0,0.00019324,2]
[346698809,1735203046178,-154.57146418,0.00019324,2]
[346698810,1735203046189,-500.0,0.00019324,2]
[346698811,1735203046205,-500.0,0.00019324,2]
[346698812,1735203046215,-2515.24537576,0.00019324,14]
[346698813,1735203046225,-302.72757545,0.0001938,2]
[346698815,1735203046235,-302.72757545,0.0001938,2]
[346698816,1735203046244,-12452.02442478,0.00019382,2]
[346698817,1735203046256,-129412.76878612,0.00019382,10]
[346698818,1735203046267,-825.19982806,0.00019382,10]
[346698819,1735203046279,-878.7831654,0.00019382,10]
[346698820,1735203046290,-1100.13685492,0.00019382,10]
[346698821,1735203046301,-95898.99999996,0.00019382,10]
[346698822,1735203046311,-405.92860889,0.00019382,10]
[346698823,1735203046324,-18707.13383802,0.00019382,10]
[346698824,1735203046334,-423.5068,0.00019382,10]
[346698825,1735203046349,-28493.70000012,0.00019382,10]
[346698826,1735203046361,-38362.65089941,0.00019382,10]
[346698827,1735203046456,-372.952584,0.00016542,2]
[346698829,1735203046467,-5.519416,0.00016542,2]
[346698830,1735203046477,-18994.480584,0.00019382,10]
[346698831,1735203046488,-22073.4529022,0.00019382,10]
[346698832,1735203046499,-20879.71254799,0.00019382,10]
[346698834,1735203046510,-19993.86282777,0.00019382,10]
[346698836,1735203046521,-271.60291709,0.00019382,10]
[346698838,1735203046532,-4893.50307036,0.00019382,10]
[346698846,1735203863694,500.0,0.00019378,120]
[346698847,1735204150139,-400.0,0.00013422,2]
[346698848,1735204150160,-400.0,0.00013973,2]
[346698849,1735204150181,-300.0,0.00014,4]
[346698850,1735204150202,-184.05150622,0.000155,5]
[346698851,1735204150228,-115.94849378,0.000155,5]
[346698852,1735204150248,-825.2185512,0.00015505,2]
[346698853,1735204150270,-500.0,0.00016434,2]
[346698854,1735204150291,-509.3,0.00016434,2]
[346698855,1735204150311,-500.0,0.00016434,2]
[346698856,1735204150335,-300.0,0.00016434,2]
[346698857,1735204150356,-500.0,0.00016435,2]
[346698858,1735204150376,-500.0,0.00016435,2]
[346698859,1735204150396,-500.02060655,0.00016435,2]
[346698860,1735204150416,-490.21922074,0.00016435,2]
[346698861,1735204150436,-307.43293162,0.00016435,2]
[346698862,1735204150456,-500.0,0.00016435,2]
[346698863,1735204150475,-500.0,0.00016435,2]
[346698864,1735204150496,-500.0,0.00016435,2]
[346698865,1735204150517,-500.0,0.00016435,2]
[346698866,1735204150537,-500.0,0.00016435,2]
[346698867,1735204150557,-508.4967355,0.00016435,2]
[346698868,1735204150577,-500.0,0.00016435,2]
[346698869,1735204150596,-191.41818503,0.00016435,2]
[346698870,1735204150616,-500.0,0.00016435,2]
[346698871,1735204150637,-500.0,0.00016435,2]
[346698872,1735204150659,-500.0,0.00016435,2]
[346698873,1735204150678,-500.0,0.00016435,2]
[346698874,1735204150697,-644.41460179,0.00016435,2]
[346698875,1735204150717,-194.60185919,0.00016435,2]
[346698876,1735204150737,-500.0,0.00016435,2]
[346698877,1735204150757,-500.0,0.00016435,2]
[346698878,1735204150776,-500.0,0.00016435,2]
[346698879,1735204150799,-500.0,0.00016435,2]
[346698880,1735204150819,-306.82954838,0.00016435,2]
[346698881,1735204160178,-193.17045162,0.00016435,2]
[346698882,1735204160203,-500.0,0.00016435,2]
[346698883,1735204160227,-500.0,0.00016435,2]
[346698884,1735204160248,-500.0,0.00016435,2]
[346698885,1735204160269,-500.0,0.00016435,2]
[346698886,1735204160290,-500.0,0.00016435,2]
[346698887,1735204160311,-154.713,0.00016435,2]
[346698888,1735204160332,-500.0,0.00016435,2]
[346698889,1735204160353,-354.4,0.00016435,2]
[346698890,1735204160375,-500.0,0.00016435,2]
[346698891,1735204160397,-502.61058018,0.00016435,2]
[346698892,1735204160419,-500.0,0.00016435,2]
[346698893,1735204160439,-501.97083415,0.00016435,2]
[346698894,1735204160461,-577.15784387,0.00016435,2]
[346698895,1735204160597,-500.0,0.00016435,2]
[346698896,1735204160619,-500.0,0.00016435,2]
[346698897,1735204160641,-500.0,0.00016435,2]
[346698898,1735204160664,-500.0,0.00016435,2]
[346698899,1735204160685,-500.0,0.00016435,2]
[346698900,1735204160708,-500.0,0.00016435,2]
[346698901,1735204160729,-500.0,0.00016435,2]
[346698902,1735204160754,-500.0,0.00016435,2]
[346698903,1735204160775,-500.0,0.00016435,2]
[346698904,1735204160796,-500.0,0.00016435,2]
[346698905,1735204160818,-500.0,0.00016435,2]
[346698906,1735204160842,-500.0,0.00016435,2]
[346698907,1735204160863,-500.0,0.00016435,2]
[346698908,1735204160884,-500.0,0.00016435,2]
[346698909,1735204160905,-500.0,0.00016435,2]
[346698910,1735204160925,-500.0,0.00016435,2]
[346698911,1735204160946,-500.0,0.00016435,2]
[346698912,1735204160967,-500.0,0.00016435,2]
[346698913,1735204160988,-500.0,0.00016435,2]
[346698914,1735204161008,-500.0,0.00016435,2]
[346698915,1735204161029,-500.0,0.00016435,2]
[346698916,1735204161050,-500.0,0.00016435,2]
[346698917,1735204161070,-500.0,0.00016435,2]
[346698918,1735204161094,-500.0,0.00016435,2]
[346698919,1735204161116,-500.0,0.00016435,2]
[346698920,1735204161136,-500.0,0.00016435,2]
[346698921,1735204161160,-500.0,0.00016435,2]
[346698922,1735204161182,-500.0,0.00016435,2]
[346698923,1735204161203,-500.0,0.00016435,2]
[346698924,1735204161224,-500.0,0.00016435,2]
[346698925,1735204161246,-500.0,0.00016435,2]
[346698926,1735204161267,-500.0,0.00016435,2]
[346698927,1735204161287,-500.0,0.00016435,2]
[346698928,1735204161308,-585.85,0.00016435,2]
[346698929,1735204161329,-500.0,0.00016435,2]
[346698930,1735204161350,-500.0,0.00016435,2]
[346698931,1735204161371,-556.24,0.00016435,2]
[346698932,1735204161392,-500.0,0.00016435,2]
[346698933,1735204161413,-871.97,0.00016438,2]
[346698934,1735204161434,-500.0,0.00016708,2]
[346698935,1735204161456,-509.3,0.00016708,2]
[346698936,1735204161478,-500.0,0.00016708,2]
[346698937,1735204161498,-648.18,0.00016709,2]
[346698938,1735204161520,-509.83562489,0.00016709,2]
[346698939,1735204161540,-578.82,0.00016709,2]
[346698940,1735204161559,-500.0,0.00016709,2]
[346698941,1735204161579,-514.5209709,0.00016709,2]
[346698942,1735204161600,-500.0,0.00016709,2]
[346698943,1735204161620,-151.99,0.00016709,2]
[346698944,1735204161640,-500.0,0.00016709,2]
[346698945,1735204161667,-500.0,0.00016709,2]
[346698946,1735204161709,-460.98,0.00016709,2]
[346698947,1735204161732,-567.21,0.00016709,2]
[346698948,1735204161753,-500.0,0.00016709,2]
[346698949,1735204161775,-500.0,0.00016709,2]
[346698950,1735204161802,-166.5,0.00016709,2]
[346698951,1735204161824,-500.0,0.00016709,2]
[346698952,1735204161845,-500.0,0.00016709,2]
[346698953,1735204161865,-500.0,0.00016709,2]
[346698954,1735204161885,-500.0,0.00016709,2]
[346698955,1735204161907,-641.94,0.00016709,2]
[346698956,1735204161928,-500.0,0.00016709,2]
[346698957,1735204161950,-500.0,0.00016709,2]
[346698958,1735204161970,-244.81,0.00016709,2]
[346698959,1735204161990,-500.0,0.00016709,2]
[346698960,1735204162012,-500.0,0.00016709,2]
[346698961,1735204162034,-500.0,0.00016709,2]
[346698962,1735204162055,-501.84145267,0.00016709,2]
[346698963,1735204162078,-500.0,0.00016709,2]
[346698964,1735204162100,-500.0,0.00016709,2]
[346698965,1735204162120,-246.47,0.00016709,2]
[346698966,1735204162143,-500.0,0.00016982,2]
[346698967,1735204162165,-509.3,0.00016982,2]
[346698968,1735204162186,-500.0,0.00016982,2]
[346698969,1735204162207,-594.5,0.00016983,2]
[346698970,1735204162228,-273.72,0.00016983,2]
[346698971,1735204162248,-198.09,0.00016983,2]
[346698972,1735204162269,-500.0,0.00016983,2]
[346698973,1735204162289,-192.64,0.00016983,2]
[346698974,1735204162310,-155.56943385,0.00016983,2]
[346698975,1735204162332,-500.0,0.00016983,2]
[346698976,1735204162353,-2280.6,0.00016983,2]
[346698977,1735204162374,-500.0,0.00016983,2]
[346698978,1735204162395,-500.0,0.00016983,2]
[346698979,1735204162416,-500.0,0.00016983,2]
[346698980,1735204162438,-500.0,0.00016983,2]
[346698981,1735204162460,-500.0,0.00016983,2]
[346698982,1735204162481,-300.0,0.00017,6]
[346698983,1735204162506,-500.0,0.00017256,2]
[346698984,1735204162528,-509.3,0.00017256,2]
[346698985,1735204162552,-500.0,0.00017256,2]
[346698986,1735204162574,-500.0,0.00017257,2]
[346698987,1735204162598,-2280.6,0.00017257,2]
[346698988,1735204162619,-244.59,0.00017257,2]
[346698989,1735204162641,-159.47123655,0.00017257,2]
[346698990,1735204162663,-357.93134242,0.00017257,2]
[346698991,1735204164100,-142.06865758,0.00017257,2]
[346698992,1735204164121,-500.0,0.00017257,2]
[346698993,1735204164142,-500.0,0.00017257,2]
[346698994,1735204164763,85.27354242,0.00017084,2]
[346698995,1735204168103,-573.79229944,0.00016335,2]
[346699022,1735204232329,-30.89294933,0.00016335,2]
[346699023,1735204232340,-449.09,0.00016434,2]
[346699024,1735204232352,-500.0,0.00016434,2]
[346699025,1735204232363,-2090.55,0.00016435,2]
[346699026,1735204232375,-183.51272927,0.00016708,2]
[346699028,1735204232388,-316.48727073,0.00016708,2]
[346699030,1735204232402,-2090.55,0.00016709,2]
[346699032,1735204232414,-500.0,0.00016982,2]
[346699035,1735204232425,-2090.55,0.00016983,2]
[346699037,1735204232437,-0.31272927,0.00017084,2]
[346699040,1735204232450,-1056.48238589,0.00017084,2]
[346699044,1735204232461,-500.0,0.00017256,2]
[346699046,1735204232471,-1897.93269382,0.00017257,2]
[346699103,1735204238345,-192.61730618,0.00017084,2]
[346699104,1735204238357,-192.61730618,0.00017257,2]
[346699105,1735204238370,-1200.0,0.00017363,2]
[346699106,1735204238382,-509.3,0.0001753,2]
[346699107,1735204238395,-500.0,0.0001753,2]
[346699108,1735204238407,-500.0,0.0001753,2]
[346699109,1735204238417,-300.52,0.00017531,2]
[346699110,1735204238427,-500.0,0.00017531,2]
[346699111,1735204238436,-500.0,0.00017531,2]
[346699112,1735204238446,-1732.4830427,0.00017531,2]
[346699113,1735204238458,-358.0669573,0.00017531,2]
[346699114,1735204238468,-666.0,0.00017706,2]
[346699115,1735204238480,-509.3,0.00017804,2]
[346699116,1735204238491,-500.0,0.00017804,2]
[346699117,1735204238503,-500.0,0.00017804,2]
[346699118,1735204238515,-500.0,0.00017805,2]
[346699119,1735204238526,-500.0,0.00017805,2]
[346699120,1735204238537,-321.6330427,0.00017805,2]
[346699121,1735204238551,-1510.8924315,0.00017805,2]
[346699122,1735204238564,-258.0245258,0.00017805,2]
[346699123,1735204238575,-871.97,0.00017808,4]
[346699124,1735204238585,-411.62,0.00018,2]
[346699125,1735204238597,-509.3,0.00018078,2]
[346699126,1735204238607,-500.0,0.00018078,2]
[346699127,1735204238619,-445.49,0.00018078,2]
[346699128,1735204238629,-500.0,0.00018079,2]
[346699129,1735204238639,-500.0,0.00018079,2]
[346699130,1735204238650,-145.72887454,0.00018079,2]
[346699371,1735204243312,-1335.525,0.00018079,2]
[346699372,1735204243424,-609.29612546,0.00018079,2]
[346699374,1735204243435,-509.3,0.00018352,2]
[346699375,1735204243446,-343.50350816,0.00018352,2]
[346699376,1735204243456,-500.0,0.00018353,2]
[346699377,1735204243466,-500.0,0.00018353,2]
[346699379,1735204243477,-2090.55,0.00018353,2]
[346699380,1735204243487,-300.0,0.000185,7]
[346699381,1735204243498,-221.23830088,0.00018527,2]
[346699382,1735204243508,-509.3,0.00018626,2]
[346699383,1735204243519,-500.0,0.00018627,2]
[346699384,1735204243529,-500.0,0.00018627,2]
[346699385,1735204243540,-92.5870644,0.00018627,2]
[346699483,1735204246521,-1860.9000002,0.00017898,2]
[346699484,1735204246531,-107.58070245,0.00018627,2]
[346699485,1735204246581,-1890.38223315,0.00018627,2]
[346699486,1735204246591,-2030.2389548,0.00018876,2]
[346699568,1735205229130,-400.0,0.00012636,2]
[346699569,1735205229152,-80.22516071,0.00012764,2]
[346699571,1735205238136,-255.19409511,0.00012764,2]
[346699576,1735205315510,971.28839833,0.00011,2]
[346699577,1735205315534,1218.16150842,0.00011,2]
[346699578,1735205315559,684.48030228,0.00011,2]
[346699586,1735205345106,-64.58074418,0.00012764,2]
[346699587,1735205345129,-400.0,0.00013973,2]
[346699588,1735205345150,-7441.78576693,0.00016499,2]
[346699589,1735205345183,-855.72209257,0.00016499,2]
[346699590,1735205353427,899.66932047,0.0001588,2]
[346699592,1735205355103,-490.0,0.00017355,2]
[346699594,1735205367392,-10.0,0.00017355,2]
[346699595,1735205367420,-500.0,0.0001753,2]
[346699596,1735205367442,-300.0,0.00017803,2]
[346699597,1735205367464,-300.0,0.00017803,2]
[346699598,1735205367485,-1000.0,0.00017803,2]
[346699599,1735205367506,-500.0,0.00017804,2]
[346699600,1735205367530,-500.0,0.00017807,2]
[346699601,1735205367551,-209.729,0.00017808,2]
[346699602,1735205367572,-1306.6,0.00017999,2]
[346699603,1735205367592,-851.48,0.00017999,2]
[346699604,1735205367614,-500.0,0.00017999,2]
[346699605,1735205367636,-6076.0,0.00018,60]
[346699606,1735205367658,-370.46,0.00018,2]
[346699607,1735205367679,-500.0,0.00018078,2]
[346699608,1735205367701,-500.0,0.00018081,2]
[346699609,1735205367724,-6651.92514891,0.00018176,2]
[346699610,1735205367747,-352.3236556,0.00018241,2]
[346699611,1735205367769,-1306.6,0.00018273,2]
[346699612,1735205367797,-500.0,0.00018273,2]
[346699613,1735205367820,-500.0,0.00018352,2]
[346699614,1735205367842,-500.0,0.00018355,2]
[346699615,1735205367863,-7329.08789008,0.00018366,2]
[346699616,1735205367886,-620.2350142,0.00018399,2]
[346699617,1735205367908,-1306.6,0.00018547,2]
[346699618,1735205367930,-500.0,0.00018547,2]
[346699619,1735205367954,-190.17986669,0.00018626,2]
[346699622,1735205374075,-700.16001431,0.00017999,2]
[346699624,1735205378490,400.0,0.00013973,2]
[346699655,1735205432689,-479.0,0.00017819,2]
[346699803,1735205438592,-964.10998569,0.00017819,2]
[346699804,1735205438601,-443.10998569,0.00017999,2]
[346699805,1735205438611,-500.0,0.00017999,2]
[346699806,1735205438621,-1143.27,0.00018273,2]
[346699808,1735205438630,-309.82013331,0.0001844,2]
[346699810,1735205438640,-1143.27,0.00018547,2]
[346699812,1735205438650,-309.82013331,0.00018626,2]
[346699814,1735205438660,-500.0,0.00018629,2]
[346699815,1735205438669,-500.0,0.00018629,5]
[346699816,1735205438678,-500.0,0.000188,2]
[346699817,1735205438689,-500.0,0.00018821,2]
[346699818,1735205438702,-1143.27,0.00018821,2]
[346699819,1735205438712,-500.0,0.000189,2]
[346699821,1735205438721,-7759.85282688,0.000189,2]
[346699823,1735205438731,-500.0,0.00018903,2]
[346699825,1735205438741,-196.4876506,0.00019,2]
[346699828,1735205438753,-106.27017039,0.00019,2]
[346699830,1735205438762,-500.0,0.00019095,2]
[346699832,1735205438771,-1143.27,0.00019095,2]
[346699834,1735205438780,-500.0,0.00019174,2]
[346699836,1735205438789,-500.0,0.00019177,2]
[346699838,1735205438799,-500.0,0.00019178,2]
[346699840,1735205438808,-500.0,0.00019178,2]
[346699841,1735205438817,-310.256639,0.00019178,2]
[346699842,1735205438827,-352.458062,0.00019178,2]
[346699843,1735205438835,-203.7545868,0.00019188,2]
[346699844,1735205438845,-302.75782099,0.0001919,2]
[346699845,1735205438854,-153.59,0.000192,31]
[346699846,1735205438863,-153.59,0.000192,31]
[346699848,1735205438872,-153.59,0.000192,31]
[346699850,1735205438881,-153.59,0.000192,31]
[346699851,1735205438890,-153.59,0.000192,31]
[346699852,1735205438899,-153.59,0.000192,31]
[346699853,1735205438908,-30.97702372,0.000192,31]